[Event "Titled Tuesday Blitz February 14 Early 2023"]
[White "Kilic, Eray"]
[Black "Fan_Of_Chucky"]
[WhiteFideId "44517173"]
[WhiteElo "2414"]
[BlackElo "2323"]
[Result "1-0"]
[Round "03"]
[TimeControl "180+2"]
[Date "2023.02.15"]
[WhiteClock "0:01:33"]
[BlackClock "0:01:36"]

1. e4 {[%clk 0:03:00]}  c5 {[%clk 0:03:00]} 2. Nf3 {[%clk 0:03:01]}  a6 {[%clk 0:03:00]} 3. c3 {[%clk 0:02:50]}  d5 {[%clk 0:03:00]} 4. exd5 {[%clk 0:02:51]}  Qxd5 {[%clk 0:03:01]} 5. d4 {[%clk 0:02:51]}  Nf6 {[%clk 0:03:01]} 6. Be3 {[%clk 0:02:51]}  cxd4 {[%clk 0:02:59]} 7. cxd4 {[%clk 0:02:52]}  e6 {[%clk 0:02:56]} 8. Nc3 {[%clk 0:02:52]}  Qd8 {[%clk 0:02:56]} 9. Bd3 {[%clk 0:02:53]}  Nc6 {[%clk 0:02:56]} 10. a3 {[%clk 0:02:53]}  Bd6 {[%clk 0:02:56]} 11. O-O {[%clk 0:02:54]}  O-O {[%clk 0:02:57]} 12. Rc1 {[%clk 0:02:54]}  b5 {[%clk 0:02:36]} 13. Nxb5 {[%clk 0:02:37]}  axb5 {[%clk 0:02:36]} 14. Rxc6 {[%clk 0:02:37]}  Bb7 {[%clk 0:02:35]} 15. Rc1 {[%clk 0:02:38]}  b4 {[%clk 0:02:31]} 16. axb4 {[%clk 0:02:38]}  Bxb4 {[%clk 0:02:31]} 17. h3 {[%clk 0:02:31]}  Nd5 {[%clk 0:02:28]} 18. Bb1 {[%clk 0:02:15]}  Qb6 {[%clk 0:02:04]} 19. Ne5 {[%clk 0:02:11]}  Bd6 {[%clk 0:01:48]} 20. Qc2 {[%clk 0:01:33]}  Nf6 {[%clk 0:01:36]} 21. Nd7 {[%clk 0:01:33]} 1-0


[Site "https://www.chess.com"]

[Event "Titled Tuesday Blitz February 14 Early 2023"]
[White "Sammed Jaykumar, Shete"]
[Black "Andreikin, Dmitry"]
[WhiteFideId "5073421"]
[BlackFideId "4158814"]
[WhiteElo "2440"]
[BlackElo "2729"]
[Result "0-1"]
[Round "03"]
[TimeControl "180+2"]
[Date "2023.02.15"]
[WhiteClock "0:01:41"]
[BlackClock "0:00:44"]

1. c4 {[%clk 0:02:59]}  e6 {[%clk 0:02:54]} 2. b3 {[%clk 0:02:59]}  d5 {[%clk 0:02:54]} 3. Bb2 {[%clk 0:02:59]}  c5 {[%clk 0:02:50]} 4. cxd5 {[%clk 0:02:58]}  exd5 {[%clk 0:02:51]} 5. e3 {[%clk 0:02:59]}  Nc6 {[%clk 0:02:51]} 6. Nf3 {[%clk 0:02:57]}  Nf6 {[%clk 0:02:50]} 7. Bb5 {[%clk 0:02:56]}  Bd6 {[%clk 0:02:50]} 8. O-O {[%clk 0:02:53]}  O-O {[%clk 0:02:50]} 9. d4 {[%clk 0:02:54]}  cxd4 {[%clk 0:02:49]} 10. Bxc6 {[%clk 0:02:51]}  bxc6 {[%clk 0:02:49]} 11. Qxd4 {[%clk 0:02:52]}  Bg4 {[%clk 0:02:30]} 12. Ba3 {[%clk 0:02:42]}  Bxf3 {[%clk 0:02:25]} 13. gxf3 {[%clk 0:02:34]}  Re8 {[%clk 0:02:18]} 14. Bxd6 {[%clk 0:02:31]}  Qxd6 {[%clk 0:02:18]} 15. Nc3 {[%clk 0:02:32]}  Re5 {[%clk 0:02:11]} 16. Ne2 {[%clk 0:02:31]}  c5 {[%clk 0:02:04]} 17. Qf4 {[%clk 0:02:21]}  Nh5 {[%clk 0:01:40]} 18. Qh4 {[%clk 0:02:20]}  d4 {[%clk 0:01:38]} 19. f4 {[%clk 0:02:15]}  Rd5 {[%clk 0:01:32]} 20. e4 {[%clk 0:02:04]}  Qg6+ {[%clk 0:01:30]} 21. Ng3 {[%clk 0:02:04]}  Nxg3 {[%clk 0:01:24]} 22. exd5 {[%clk 0:02:05]}  Nxf1+ {[%clk 0:01:16]} 23. Kxf1 {[%clk 0:02:06]}  h6 {[%clk 0:01:03]} 24. Qe7 {[%clk 0:02:02]}  Qh5 {[%clk 0:00:51]} 25. Qxc5 {[%clk 0:01:52]}  Qxh2 {[%clk 0:00:45]} 26. Re1 {[%clk 0:01:41]}  Qh1+ {[%clk 0:00:44]} 0-1


[Site "https://www.chess.com"]

[Event "Titled Tuesday Blitz February 14 Early 2023"]
[White "Le, Tuan Minh"]
[Black "Panesar Vedant"]
[WhiteFideId "12401153"]
[BlackFideId "35033018"]
[WhiteElo "2542"]
[BlackElo "2387"]
[Result "1-0"]
[Round "03"]
[TimeControl "180+2"]
[Date "2023.02.15"]
[WhiteClock "0:00:56"]
[BlackClock "0:00:06"]

1. d4 {[%clk 0:03:00]}  Nf6 {[%clk 0:02:59]} 2. Nf3 {[%clk 0:03:00]}  d5 {[%clk 0:03:00]} 3. Bf4 {[%clk 0:02:59]}  c5 {[%clk 0:02:59]} 4. c3 {[%clk 0:02:59]}  Nc6 {[%clk 0:03:00]} 5. e3 {[%clk 0:02:59]}  Qb6 {[%clk 0:02:57]} 6. Qc2 {[%clk 0:02:59]}  g6 {[%clk 0:02:58]} 7. Nbd2 {[%clk 0:02:59]}  Bf5 {[%clk 0:02:57]} 8. dxc5 {[%clk 0:02:59]}  Qxc5 {[%clk 0:02:55]} 9. Qb3 {[%clk 0:02:58]}  Na5 {[%clk 0:02:51]} 10. Qa4+ {[%clk 0:02:57]}  Bd7 {[%clk 0:02:50]} 11. Nb3 {[%clk 0:02:58]}  Bxa4 {[%clk 0:02:30]} 12. Nxc5 {[%clk 0:02:57]}  Bc6 {[%clk 0:02:31]} 13. Ne5 {[%clk 0:02:39]}  e6 {[%clk 0:00:30]} 14. Nxc6 {[%clk 0:01:58]}  bxc6 {[%clk 0:00:29]} 15. Nb3 {[%clk 0:01:58]}  Nb7 {[%clk 0:00:20]} 16. Be5 {[%clk 0:01:45]}  Bg7 {[%clk 0:00:19]} 17. Ba6 {[%clk 0:01:45]}  Nd8 {[%clk 0:00:20]} 18. h3 {[%clk 0:01:30]}  Ke7 {[%clk 0:00:18]} 19. O-O-O {[%clk 0:01:26]}  Rg8 {[%clk 0:00:18]} 20. Bh2 {[%clk 0:01:17]}  Ne4 {[%clk 0:00:18]} 21. Rhf1 {[%clk 0:01:15]}  Bh6 {[%clk 0:00:17]} 22. Kc2 {[%clk 0:01:14]}  Nd6 {[%clk 0:00:16]} 23. Na5 {[%clk 0:01:11]}  Kd7 {[%clk 0:00:13]} 24. c4 {[%clk 0:01:08]}  Bf8 {[%clk 0:00:13]} 25. f3 {[%clk 0:01:07]}  Be7 {[%clk 0:00:13]} 26. e4 {[%clk 0:01:07]}  Rb8 {[%clk 0:00:10]} 27. c5 {[%clk 0:01:07]}  Rb4 {[%clk 0:00:05]} 28. cxd6 {[%clk 0:00:57]}  Bf6 {[%clk 0:00:05]} 29. e5 {[%clk 0:00:57]}  Ra4 {[%clk 0:00:06]} 30. Nb3 {[%clk 0:00:56]} 1-0


[Site "https://www.chess.com"]

[Event "Titled Tuesday Blitz February 14 Early 2023"]
[White "Kvaloy, Aksel Bu"]
[Black "Lenderman, Aleksandr"]
[WhiteFideId "1528815"]
[BlackFideId "2021285"]
[WhiteElo "2321"]
[BlackElo "2572"]
[Result "0-1"]
[Round "03"]
[TimeControl "180+2"]
[Date "2023.02.15"]
[WhiteClock "0:00:01"]
[BlackClock "0:00:42"]

1. d4 {[%clk 0:03:00]}  c6 {[%clk 0:02:58]} 2. e4 {[%clk 0:03:00]}  g6 {[%clk 0:02:57]} 3. f4 {[%clk 0:02:56]}  d5 {[%clk 0:02:57]} 4. e5 {[%clk 0:02:56]}  h5 {[%clk 0:02:55]} 5. Nc3 {[%clk 0:02:49]}  Nh6 {[%clk 0:02:53]} 6. Nf3 {[%clk 0:02:42]}  Bg4 {[%clk 0:02:53]} 7. Be3 {[%clk 0:02:42]}  e6 {[%clk 0:02:52]} 8. Bf2 {[%clk 0:02:39]}  Nd7 {[%clk 0:02:49]} 9. h3 {[%clk 0:02:33]}  Bxf3 {[%clk 0:02:49]} 10. Qxf3 {[%clk 0:02:34]}  h4 {[%clk 0:02:49]} 11. Bd3 {[%clk 0:02:31]}  Nf5 {[%clk 0:02:49]} 12. Ne2 {[%clk 0:02:30]}  Qb6 {[%clk 0:02:44]} 13. O-O {[%clk 0:02:26]}  c5 {[%clk 0:02:37]} 14. c3 {[%clk 0:02:19]}  c4 {[%clk 0:02:36]} 15. Bxf5 {[%clk 0:02:00]}  gxf5 {[%clk 0:02:37]} 16. Rab1 {[%clk 0:01:59]}  Qc7 {[%clk 0:02:37]} 17. b3 {[%clk 0:01:56]}  b5 {[%clk 0:02:37]} 18. Kh1 {[%clk 0:01:26]}  Be7 {[%clk 0:02:31]} 19. Rb2 {[%clk 0:01:23]}  Nb6 {[%clk 0:02:30]} 20. Rc2 {[%clk 0:01:18]}  Kf8 {[%clk 0:02:29]} 21. Ng1 {[%clk 0:01:15]}  a5 {[%clk 0:02:27]} 22. Qe3 {[%clk 0:01:12]}  cxb3 {[%clk 0:02:25]} 23. axb3 {[%clk 0:01:11]}  a4 {[%clk 0:02:25]} 24. bxa4 {[%clk 0:01:05]}  bxa4 {[%clk 0:02:25]} 25. Ra1 {[%clk 0:01:03]}  Nc4 {[%clk 0:02:24]} 26. Qe1 {[%clk 0:01:03]}  a3 {[%clk 0:02:24]} 27. Nf3 {[%clk 0:01:03]}  Qd8 {[%clk 0:02:19]} 28. Nd2 {[%clk 0:01:00]}  Nxd2 {[%clk 0:02:16]} 29. Qxd2 {[%clk 0:01:01]}  Kg7 {[%clk 0:02:16]} 30. Rca2 {[%clk 0:00:52]}  Qc7 {[%clk 0:02:11]} 31. Qd3 {[%clk 0:00:49]}  Rhc8 {[%clk 0:02:09]} 32. Be1 {[%clk 0:00:49]}  Qc4 {[%clk 0:02:07]} 33. Qxc4 {[%clk 0:00:40]}  dxc4 {[%clk 0:02:08]} 34. Kg1 {[%clk 0:00:35]}  Rcb8 {[%clk 0:02:08]} 35. Bd2 {[%clk 0:00:30]}  Rb2 {[%clk 0:02:06]} 36. Bc1 {[%clk 0:00:29]}  Rb3 {[%clk 0:01:56]} 37. Rc2 {[%clk 0:00:27]}  Kf8 {[%clk 0:01:56]} 38. Kf2 {[%clk 0:00:26]}  Ke8 {[%clk 0:01:56]} 39. Ke2 {[%clk 0:00:26]}  Kd7 {[%clk 0:01:57]} 40. Kd2 {[%clk 0:00:26]}  Kc6 {[%clk 0:01:57]} 41. Rca2 {[%clk 0:00:25]}  Kd5 {[%clk 0:01:57]} 42. Rc2 {[%clk 0:00:20]}  Ra4 {[%clk 0:01:56]} 43. Ke3 {[%clk 0:00:19]}  Bb4 {[%clk 0:01:53]} 44. Bd2 {[%clk 0:00:18]}  Ba5 {[%clk 0:01:50]} 45. Kf3 {[%clk 0:00:13]}  Bb6 {[%clk 0:01:49]} 46. Ke2 {[%clk 0:00:12]}  Ke4 {[%clk 0:01:48]} 47. Bc1 {[%clk 0:00:12]}  a2 {[%clk 0:01:43]} 48. Bd2 {[%clk 0:00:08]}  Rba3 {[%clk 0:01:30]} 49. Bc1 {[%clk 0:00:07]}  Rxc3 {[%clk 0:01:30]} 50. Rxc3 {[%clk 0:00:07]}  Bxd4 {[%clk 0:01:31]} 51. Bb2 {[%clk 0:00:07]}  Bxc3 {[%clk 0:01:25]} 52. Bxc3 {[%clk 0:00:08]}  Kxf4 {[%clk 0:01:25]} 53. Kd2 {[%clk 0:00:05]}  Kg3 {[%clk 0:01:24]} 54. Ke3 {[%clk 0:00:02]}  Kxg2 {[%clk 0:01:23]} 55. Kf4 {[%clk 0:00:02]}  Ra3 {[%clk 0:01:22]} 56. Bd4 {[%clk 0:00:01]}  Kxh3 {[%clk 0:01:03]} 57. Bc5 {[%clk 0:00:02]}  Rg3 {[%clk 0:00:43]} 58. Rxa2 {[%clk 0:00:02]}  c3 {[%clk 0:00:43]} 59. Rc2 {[%clk 0:00:01]}  Rg4+ {[%clk 0:00:42]} 60. Kf3 {[%clk 0:00:01]}  Rc4 {[%clk 0:00:42]} 0-1


[Site "https://www.chess.com"]

[Event "Titled Tuesday Blitz February 14 Early 2023"]
[White "Sadykov, Ramil"]
[Black "Sjugirov, Sanan"]
[WhiteFideId "24113590"]
[BlackFideId "4189302"]
[WhiteElo "2345"]
[BlackElo "2712"]
[Result "0-1"]
[Round "03"]
[TimeControl "180+2"]
[Date "2023.02.15"]
[WhiteClock "0:00:34"]
[BlackClock "0:00:35"]

1. e4 {[%clk 0:03:00]}  c5 {[%clk 0:02:59]} 2. Nf3 {[%clk 0:03:00]}  Nc6 {[%clk 0:02:59]} 3. Bb5 {[%clk 0:03:00]}  e6 {[%clk 0:02:59]} 4. Bxc6 {[%clk 0:03:00]}  bxc6 {[%clk 0:03:00]} 5. d3 {[%clk 0:03:00]}  Qc7 {[%clk 0:03:00]} 6. Qe2 {[%clk 0:02:55]}  e5 {[%clk 0:02:58]} 7. Nh4 {[%clk 0:02:47]}  Ne7 {[%clk 0:02:50]} 8. O-O {[%clk 0:02:31]}  Ng6 {[%clk 0:02:45]} 9. Nf5 {[%clk 0:02:30]}  d6 {[%clk 0:02:41]} 10. Qf3 {[%clk 0:02:12]}  f6 {[%clk 0:02:37]} 11. Nc3 {[%clk 0:02:02]}  Be6 {[%clk 0:02:33]} 12. b3 {[%clk 0:02:02]}  Qd7 {[%clk 0:02:31]} 13. Ne3 {[%clk 0:01:39]}  Be7 {[%clk 0:02:29]} 14. Qg3 {[%clk 0:01:37]}  O-O {[%clk 0:02:27]} 15. Ne2 {[%clk 0:01:37]}  f5 {[%clk 0:01:57]} 16. exf5 {[%clk 0:01:34]}  Bxf5 {[%clk 0:01:58]} 17. Nxf5 {[%clk 0:01:34]}  Qxf5 {[%clk 0:01:59]} 18. h3 {[%clk 0:01:21]}  Bh4 {[%clk 0:01:56]} 19. Qe3 {[%clk 0:01:19]}  Rf7 {[%clk 0:01:45]} 20. Ng3 {[%clk 0:01:16]}  Qd7 {[%clk 0:01:41]} 21. Bd2 {[%clk 0:01:04]}  Raf8 {[%clk 0:01:41]} 22. Qe4 {[%clk 0:01:00]}  Nf4 {[%clk 0:01:35]} 23. Rae1 {[%clk 0:00:49]}  h6 {[%clk 0:01:02]} 24. a4 {[%clk 0:00:49]}  Rf6 {[%clk 0:00:55]} 25. Kh2 {[%clk 0:00:48]}  Bg5 {[%clk 0:00:47]} 26. Be3 {[%clk 0:00:45]}  Qe8 {[%clk 0:00:39]} 27. f3 {[%clk 0:00:34]}  d5 {[%clk 0:00:35]} 0-1


[Site "https://www.chess.com"]

[Event "Titled Tuesday Blitz February 14 Early 2023"]
[White "Chylewski, Patryk"]
[Black "Urazayev, Arystanbek"]
[WhiteFideId "1186191"]
[BlackFideId "13709810"]
[WhiteElo "2281"]
[BlackElo "2460"]
[Result "0-1"]
[Round "03"]
[TimeControl "180+2"]
[Date "2023.02.15"]
[WhiteClock "0:00:01"]
[BlackClock "0:01:28"]

1. e4 {[%clk 0:03:00]}  e6 {[%clk 0:03:00]} 2. d4 {[%clk 0:02:59]}  d5 {[%clk 0:03:01]} 3. Nd2 {[%clk 0:02:59]}  Be7 {[%clk 0:03:00]} 4. Bd3 {[%clk 0:02:58]}  c5 {[%clk 0:02:56]} 5. dxc5 {[%clk 0:02:57]}  a5 {[%clk 0:02:56]} 6. a4 {[%clk 0:02:52]}  Nf6 {[%clk 0:02:56]} 7. Qe2 {[%clk 0:02:41]}  Na6 {[%clk 0:02:46]} 8. Bb5+ {[%clk 0:02:32]}  Bd7 {[%clk 0:02:46]} 9. e5 {[%clk 0:02:29]}  Ng8 {[%clk 0:02:39]} 10. Ngf3 {[%clk 0:02:05]}  Nxc5 {[%clk 0:02:38]} 11. O-O {[%clk 0:01:59]}  Nh6 {[%clk 0:02:38]} 12. b3 {[%clk 0:01:53]}  O-O {[%clk 0:02:36]} 13. Bb2 {[%clk 0:01:47]}  Nf5 {[%clk 0:02:35]} 14. Rfd1 {[%clk 0:01:37]}  Bxb5 {[%clk 0:02:35]} 15. Qxb5 {[%clk 0:01:33]}  Qc7 {[%clk 0:02:35]} 16. Rac1 {[%clk 0:01:26]}  Rac8 {[%clk 0:02:32]} 17. Nd4 {[%clk 0:01:13]}  Nxd4 {[%clk 0:02:13]} 18. Bxd4 {[%clk 0:01:14]}  Bg5 {[%clk 0:02:13]} 19. Qe2 {[%clk 0:00:29]}  Ne4 {[%clk 0:02:13]} 20. Nxe4 {[%clk 0:00:16]}  dxe4 {[%clk 0:02:13]} 21. Be3 {[%clk 0:00:15]}  Bxe3 {[%clk 0:02:14]} 22. Qxe3 {[%clk 0:00:16]}  Qxe5 {[%clk 0:02:14]} 23. Qb6 {[%clk 0:00:15]}  Rc7 {[%clk 0:02:11]} 24. Rd2 {[%clk 0:00:13]}  h5 {[%clk 0:02:00]} 25. Rcd1 {[%clk 0:00:13]}  h4 {[%clk 0:01:57]} 26. h3 {[%clk 0:00:13]}  Qc5 {[%clk 0:01:51]} 27. Qxc5 {[%clk 0:00:12]}  Rxc5 {[%clk 0:01:52]} 28. c4 {[%clk 0:00:13]}  Rc6 {[%clk 0:01:50]} 29. Rd7 {[%clk 0:00:13]}  Rb6 {[%clk 0:01:50]} 30. Rb1 {[%clk 0:00:13]}  Rc8 {[%clk 0:01:49]} 31. Rd4 {[%clk 0:00:10]}  f5 {[%clk 0:01:50]} 32. Kh2 {[%clk 0:00:03]}  Kf7 {[%clk 0:01:50]} 33. g3 {[%clk 0:00:02]}  hxg3+ {[%clk 0:01:50]} 34. Kxg3 {[%clk 0:00:03]}  Kf6 {[%clk 0:01:50]} 35. h4 {[%clk 0:00:03]}  Ke5 {[%clk 0:01:51]} 36. Rd7 {[%clk 0:00:03]}  Rxc4 {[%clk 0:01:45]} 37. bxc4 {[%clk 0:00:04]}  Rxb1 {[%clk 0:01:46]} 38. Rxg7 {[%clk 0:00:04]}  Rb3+ {[%clk 0:01:46]} 39. Kg2 {[%clk 0:00:04]}  f4 {[%clk 0:01:40]} 40. h5 {[%clk 0:00:03]}  f3+ {[%clk 0:01:36]} 41. Kg3 {[%clk 0:00:04]}  Rb1 {[%clk 0:01:36]} 42. Rf7 {[%clk 0:00:02]}  Rg1+ {[%clk 0:01:33]} 43. Kh4 {[%clk 0:00:02]}  Rg2 {[%clk 0:01:33]} 44. h6 {[%clk 0:00:02]}  Rxf2 {[%clk 0:01:32]} 45. h7 {[%clk 0:00:02]}  Rh2+ {[%clk 0:01:32]} 46. Kg3 {[%clk 0:00:02]}  Rh1 {[%clk 0:01:31]} 47. Rxb7 {[%clk 0:00:01]}  Kd4 {[%clk 0:01:31]} 48. Rd7+ {[%clk 0:00:01]}  Kxc4 {[%clk 0:01:30]} 49. Rb7 {[%clk 0:00:02]}  e5 {[%clk 0:01:29]} 50. Kf2 {[%clk 0:00:02]}  Rh2+ {[%clk 0:01:27]} 51. Kg3 {[%clk 0:00:02]}  Rh6 {[%clk 0:01:28]} 52. Kf2 {[%clk 0:00:01]}  Kc3 {[%clk 0:01:28]} 53. Ke3 {[%clk 0:00:01]}  Rh2 {[%clk 0:01:28]} 0-1


[Site "https://www.chess.com"]

[Event "Titled Tuesday Blitz February 14 Early 2023"]
[White "Ambartsumova, Karina"]
[Black "Remizov, Yaroslav"]
[WhiteFideId "4166299"]
[BlackFideId "34134015"]
[WhiteElo "2393"]
[BlackElo "2421"]
[Result "0-1"]
[Round "03"]
[TimeControl "180+2"]
[Date "2023.02.15"]
[WhiteClock "0:00:08"]
[BlackClock "0:02:10"]

1. c4 {[%clk 0:03:00]}  a6 {[%clk 0:02:58]} 2. Nf3 {[%clk 0:02:59]}  b6 {[%clk 0:02:57]} 3. g3 {[%clk 0:02:58]}  c6 {[%clk 0:02:58]} 4. Bg2 {[%clk 0:02:57]}  Ra7 {[%clk 0:02:58]} 5. d4 {[%clk 0:02:57]}  d6 {[%clk 0:02:58]} 6. Nc3 {[%clk 0:02:56]}  e6 {[%clk 0:02:58]} 7. e4 {[%clk 0:02:56]}  f6 {[%clk 0:02:59]} 8. O-O {[%clk 0:02:55]}  g5 {[%clk 0:02:59]} 9. e5 {[%clk 0:02:45]}  dxe5 {[%clk 0:02:59]} 10. dxe5 {[%clk 0:02:39]}  Qxd1 {[%clk 0:02:55]} 11. Rxd1 {[%clk 0:02:39]}  g4 {[%clk 0:02:55]} 12. Nd4 {[%clk 0:02:32]}  c5 {[%clk 0:02:55]} 13. Nc6 {[%clk 0:02:08]}  Nxc6 {[%clk 0:02:55]} 14. Bxc6+ {[%clk 0:02:09]}  Bd7 {[%clk 0:02:55]} 15. Rxd7 {[%clk 0:01:53]}  Rxd7 {[%clk 0:02:56]} 16. exf6 {[%clk 0:01:53]}  Nxf6 {[%clk 0:02:36]} 17. Bg5 {[%clk 0:01:53]}  Be7 {[%clk 0:02:36]} 18. Rd1 {[%clk 0:01:17]}  Kd8 {[%clk 0:02:35]} 19. Bxd7 {[%clk 0:01:01]}  Nxd7 {[%clk 0:02:36]} 20. Bf4 {[%clk 0:00:55]}  Bf6 {[%clk 0:02:35]} 21. Na4 {[%clk 0:00:33]}  Ke7 {[%clk 0:02:15]} 22. Bc7 {[%clk 0:00:23]}  Bd4 {[%clk 0:02:12]} 23. Nxb6 {[%clk 0:00:07]}  Nxb6 {[%clk 0:02:11]} 24. Bxb6 {[%clk 0:00:08]}  Rb8 {[%clk 0:02:10]} 0-1


[Site "https://www.chess.com"]